lending/lending_fUSD_20260223
["ID","MTS","AMOUNT","RATE_DAILY","PERIOD"]
[406366432,1771809042988,-306.05328416,0.00040891,2]
[406366433,1771809043000,-300.0,0.00040891,2]
[406366434,1771809043010,-306.05328416,0.00040891,2]
[406366435,1771809043021,-300.0,0.00040891,2]
[406366436,1771809043032,-6130.41131586,0.0004095,24]
[406366437,1771809043158,-2331.02674874,0.0004095,24]
[406366438,1771809043183,-192.8328267,0.0004095,24]
[406366439,1771809043200,-413.0,0.00039468,2]
[406366440,1771809043211,-709.78527406,0.0004095,24]
[406366441,1771809043224,-336.7928466,0.0004095,24]
[406366442,1771809043237,-1800.84582242,0.0004095,24]
[406366443,1771809043250,-2145.57603549,0.0004095,24]
[406366444,1771809043261,-1550.42396451,0.0004095,60]
[406366445,1771809043275,-1510.04680539,0.0004095,60]
[406366448,1771809043346,-6740.8241,0.000162,2]
[406366449,1771809043357,-13350.54992224,0.0004095,60]
[406366450,1771809043392,521.0,0.0001521,2]
[406366451,1771809043411,-5028.64206336,0.0004095,60]
[406366452,1771809043430,-1010.0,0.00037556,30]
[406366453,1771809043440,-1184.0,0.00037556,30]
[406366454,1771809043450,-4446.1,0.0004095,60]
[406366455,1771809043462,-2000.1938094,0.0004095,60]
[406366456,1771809043474,-909.34472801,0.0004095,60]
[406366457,1771809043486,-2030.06066947,0.0004095,60]
[406366458,1771809043499,-1917.28356413,0.0004095,60]
[406366459,1771809043513,-54612.35447349,0.0004095,60]
[406366460,1771809043525,-319.36,0.00041,30]
[406366462,1771809043537,-162.0,0.00041,120]
[406366463,1771809043547,-162.0,0.00041,90]
[406366465,1771809043564,-10000.0,0.00041,120]
[406366467,1771809043574,-2014.60439415,0.00041096,10]
[406366468,1771809043584,-169.289495,0.00041096,120]
[406366469,1771809043594,-342.5086222,0.00041143,28]
[406366470,1771809043604,-150.0,0.000417,30]
[406366471,1771809043614,-200.0,0.00041989,8]
[406366473,1771809043624,-10000.0,0.00042,120]
[406366474,1771809043634,-200.0,0.00042072,8]
[406366475,1771809043644,-200.0,0.00042072,8]
[406366476,1771809043655,-200.0,0.00042072,8]
[406366477,1771809043665,-200.0,0.00042072,8]
[406366479,1771809043676,-200.0,0.00042072,8]
[406366480,1771809043687,-200.0,0.00042072,8]
[406366481,1771809043698,-200.0,0.00042126,8]
[406366482,1771809043709,-150.0,0.00042173,120]
[406366484,1771809043719,-151.0,0.000423,120]
[406366485,1771809043730,-151.0,0.000423,120]
[406366486,1771809043739,-500.620003,0.000423,120]
[406366487,1771809043752,-500.620003,0.000423,120]
[406366488,1771809043761,-500.620003,0.000423,120]
[406366489,1771809043772,-500.620003,0.000423,120]
[406366490,1771809043781,-151.0,0.000423,120]
[406366491,1771809043792,-87355.0,0.000423,60]
[406366492,1771809043802,-1207.0,0.00042452,2]
[406366493,1771809043817,-1219.119,0.00042468,2]
[406366494,1771809043827,-5977.0,0.00042468,2]
[406366495,1771809043837,-413.0,0.00042468,2]
[406366496,1771809043847,-150.0,0.00042476,2]
[406366497,1771809043858,-1038.0,0.00042476,2]
[406366498,1771809043870,-618.0,0.00042476,2]
[406366499,1771809043882,-3494.0,0.00042476,2]
[406366500,1771809043892,-1276.0,0.00042476,2]
[406366501,1771809043903,-151.0,0.00042476,7]
[406366502,1771809043913,-151.0,0.00042476,120]
[406366503,1771809043923,-151.0,0.00042476,120]
[406366504,1771809043933,-151.0,0.00042476,120]
[406366505,1771809043943,-151.0,0.00042476,120]
[406366506,1771809043955,-151.0,0.00042476,120]
[406366507,1771809043966,-151.0,0.00042476,120]
[406366508,1771809043976,-151.0,0.00042476,120]
[406366509,1771809043987,-151.0,0.00042476,120]
[406366510,1771809043997,-151.0,0.00042476,120]
[406366511,1771809044007,-171.633866,0.00042476,120]
[406366512,1771809044018,-171.633866,0.00042476,120]
[406366513,1771809044029,-151.0,0.00042476,120]
[406366514,1771809044040,-171.633866,0.00042476,120]
[406366515,1771809044050,-254.401031,0.00042476,120]
[406366516,1771809044066,-171.633866,0.00042476,120]
[406366517,1771809044077,-151.0,0.00042476,120]
[406366518,1771809044087,-151.0,0.00042476,120]
[406366519,1771809044098,-151.0,0.00042476,120]
[406366520,1771809044108,-151.0,0.00042476,120]
[406366521,1771809044118,-152.801293,0.00042476,120]
[406366522,1771809044128,-151.0,0.00042476,120]
[406366523,1771809044139,-97.22800188,0.00042476,120]
[406366528,1771809045485,-960.0,0.000423,60]
[406366529,1771809045498,-711.0,0.000423,60]
[406366530,1771809045508,-53.77199812,0.00042476,120]
[406366531,1771809045519,-151.0,0.00042476,90]
[406366532,1771809045529,-151.0,0.00042476,120]
[406366533,1771809045539,-151.0,0.00042476,120]
[406366534,1771809045550,-151.0,0.00042476,120]
[406366535,1771809045563,-151.0,0.00042476,120]
[406366536,1771809045573,-151.0,0.00042476,120]
[406366537,1771809045583,-151.0,0.00042476,7]
[406366538,1771809045593,-301.8603,0.00042476,7]
[406366539,1771809045603,-151.0,0.00042476,120]
[406366540,1771809045613,-370.412176,0.00042476,120]
[406366541,1771809045623,-370.412176,0.00042476,120]
[406366542,1771809045633,-370.412176,0.00042476,120]
[406366543,1771809045643,-370.412176,0.00042476,120]
[406366544,1771809045653,-152.59,0.00042661,120]
[406366545,1771809045663,-575.04,0.00042935,30]
[406366546,1771809045673,-151.0,0.00042935,120]
[406366547,1771809045683,-151.0,0.00042935,120]
[406366548,1771809045693,-151.0,0.00042935,120]
[406366549,1771809045704,-151.0,0.00042935,120]
[406366550,1771809045714,-151.0,0.00042935,120]
[406366551,1771809045724,-6291.90397855,0.0004295,10]
[406366552,1771809045735,-214.0,0.00043,7]
[406366553,1771809045746,-162.0,0.00043,120]
[406366554,1771809045757,-10000.0,0.00043,120]
[406366555,1771809045767,-18430.06813164,0.0004321,120]
[406366556,1771809045780,-285.15000001,0.0004321,120]
[406366557,1771809045792,-669.0,0.0004321,120]
[406366558,1771809045809,-264.208,0.0004321,120]
[406366559,1771809045823,-1129.66318523,0.0004321,120]
[406366560,1771809045836,-140.70995618,0.0004321,120]
[406366561,1771809045846,-151.0,0.0004321,120]
[406366562,1771809045857,-151.0,0.0004321,120]
[406366566,1771809046043,-151.0,0.0004321,120]
[406366567,1771809046058,-151.0,0.0004321,120]
[406366568,1771809046068,-151.0,0.0004321,120]
[406366569,1771809046078,-151.0,0.0004321,120]
[406366570,1771809046087,-151.0,0.0004321,120]
[406366571,1771809046096,-151.0,0.0004321,120]
[406366572,1771809046105,-2640.62,0.000433,2]
[406366573,1771809046114,-282.59,0.00043452,120]
[406366574,1771809046124,-150.0,0.00043459,120]
[406366575,1771809046133,-150.0,0.00043601,120]
[406366576,1771809046143,-219.08004382,0.0004365,60]
[406366577,1771809046154,-644.1737403,0.0004365,60]
[406366578,1771809046166,-24460.24731844,0.0004365,60]
[406366579,1771809046177,-33000.0,0.0004365,60]
[406366582,1771809046188,-663.7042298,0.0004365,60]
[406366583,1771809046199,-5145.5677506,0.0004365,60]
[406366584,1771809046210,-392.57999984,0.0004365,60]
[406366585,1771809132958,634.0,0.0001521,2]
[406366586,1771809251179,250.0,0.00015,2]
[406366587,1771809492894,634.6676,0.0001521,2]
[406366588,1771809567456,168.23,0.00012739,2]
[406366642,1771809649167,-650.0,0.00015642,2]
[406366643,1771809788969,-4350.01,0.00015599,2]
[406366644,1771809788999,-1500.0,0.00015678,2]
[406366645,1771809789031,-300.0,0.00015698,2]
[406366646,1771809789061,-394.38829227,0.00015699,2]
[406366647,1771809789093,-203.82945181,0.00015699,2]
[406366648,1771809789123,-200.48756589,0.00015699,2]
[406366649,1771809789151,-171.79666107,0.00015699,2]
[406366650,1771809789178,-213.86719412,0.00015699,2]
[406366651,1771809789212,-201.35049008,0.00015699,2]
[406366652,1771809789246,-500.0,0.00015699,2]
[406366653,1771809789282,-500.0,0.00015699,2]
[406366654,1771809789312,-500.0,0.00015699,2]
[406366655,1771809789343,-500.0,0.00015699,2]
[406366656,1771809789372,-428.54068952,0.00015699,2]
[406366657,1771809789587,-71.45931048,0.00015699,2]
[406366658,1771809856867,-323.86289091,0.00015699,2]
[406366659,1771809856894,-300.0,0.00015699,2]
[406366660,1771809856921,-250.0,0.00015699,2]
[406366661,1771809856947,-300.0,0.00015699,2]
[406366662,1771809856974,-300.0,0.00015699,2]
[406366663,1771809857079,-50.0,0.000157,2]
[406366664,1771809857094,-17052.27421818,0.000157,2]
[406366665,1771809904408,-1200.0,0.0001562,2]
[406366666,1771809904439,-348.06444696,0.00015621,2]
[406366667,1771809904465,-378.82687906,0.00015621,2]
[406366668,1771809904493,-597.24078138,0.00015621,2]
[406366669,1771809904521,-5470.46844314,0.00015621,2]
[406366670,1771809904548,-151.0,0.00015697,2]
[406366671,1771809904585,-300.0,0.00015699,2]
[406366672,1771809904612,-300.0,0.00015699,2]
[406366673,1771809904731,-32508.79889892,0.000157,2]
[406366717,1771809967688,-5925.06448378,0.00015604,2]
[406366718,1771809967715,-154.61075674,0.00015604,2]
[406366719,1771809967742,-228.02947219,0.00015606,2]
[406366720,1771809967769,-276.96817758,0.00015607,2]
[406366721,1771809967841,-6830.65421942,0.0001569,2]
[406366722,1771810021775,200.0,0.00015375,2]
[406366756,1771810053286,-398.16052092,0.00015604,2]
[406366757,1771810053313,-252.55125272,0.00015604,2]
[406366758,1771810053341,-343.15199522,0.00015604,2]
[406366759,1771810053370,-300.0,0.00015689,2]
[406366760,1771810053400,-300.0,0.00015689,2]
[406366761,1771810053432,-18751.57601419,0.0001569,2]
[406366762,1771810053532,-9309.1204339,0.0001569,2]
[406366763,1771810068262,172.0,5e-07,2]
[406366764,1771810092036,10023.7999655,0.00015,7]
[406366765,1771810116317,265.44034728,0.000155,2]
[406366768,1771810126678,1389.84912722,0.0001512,2]
[406366769,1771810126703,2209.44255587,0.0001512,2]
[406366770,1771810130236,168.3675018,0.000155,2]
[406366771,1771810145234,-1200.0,0.00015599,2]
[406366772,1771810145262,-276.07180459,0.00015599,2]
[406366773,1771810145293,-313.76254343,0.00015599,2]
[406366774,1771810145320,-300.0,0.00015599,2]
[406366775,1771810145349,-2997910.16565198,0.000156,2]
[406366811,1771810231796,-400.0,0.00015599,2]
[406366819,1771810231913,-100.0,0.00015599,2]
[406366820,1771810231922,-1200.0,0.00015599,2]
[406366821,1771810231931,-300.0,0.00015599,2]
[406366822,1771810231940,-300.0,0.00015599,2]
[406366823,1771810231950,-300.0,0.00015599,2]
[406366824,1771810231973,-300.0,0.00015599,2]
[406366825,1771810231982,-280.0,0.00015599,2]
[406366826,1771810231991,-1153.88,0.000156,2]
[406366827,1771810232003,-58124.88136276,0.000156,2]
[406366828,1771810232015,-13500.0,0.000156,2]
[406366829,1771810232026,-2684.09952,0.000156,2]
[406366830,1771810232036,-11558.67649784,0.000156,2]
[406366858,1771810237972,-981.22,0.000156,2]
[406366859,1771810238110,-1817.11875602,0.000156,2]
[406366860,1771810238122,-672.60283881,0.000156,2]
[406366861,1771810238139,-9362.65463228,0.000156,2]
[406366862,1771810238151,-1120.43290127,0.000156,2]
[406366863,1771810238452,-14211.4426526,0.000156,2]
[406366864,1771810238467,-653.07,0.000156,2]
[406366955,1771810240010,-326.2332,0.000156,2]
[406366956,1771810240135,-688.22908158,0.000156,2]
[406366957,1771810240147,-4564.0,0.000156,2]
[406366958,1771810240172,-380671.29290486,0.000156,2]
[406366959,1771810240182,-89491.5931,0.000156,2]
[406366960,1771810240192,-2500.0,0.000156,2]
[406366961,1771810240202,-195.0,0.00015703,2]
[406366962,1771810240213,-160.9,0.00015707,2]
[406366963,1771810240224,-195.0,0.00015737,2]
[406366964,1771810240235,-1491.219,0.00015799,2]
[406366965,1771810240244,-192.662,0.00015799,2]
[406366966,1771810240254,-33411.30557241,0.000158,2]
[406366967,1771810240266,-5925.06448373,0.00015888,2]
[406366968,1771810240275,-5307.8847,0.0001589,2]
[406366969,1771810240285,-151.0,0.0001598,2]
[406366970,1771810240296,-151.0,0.0001598,2]
[406366971,1771810240305,-151.0,0.0001598,2]
[406366972,1771810240315,-151.0,0.0001598,2]
[406366973,1771810240324,-151.0,0.0001598,2]
[406366974,1771810240334,-151.0,0.0001598,2]
[406366975,1771810240344,-151.0,0.0001598,2]
[406366976,1771810240353,-151.0,0.0001598,2]
[406366977,1771810240363,-151.0,0.0001598,2]
[406366978,1771810240372,-151.0,0.0001598,2]
[406366979,1771810240382,-151.0,0.0001598,2]
[406366980,1771810240391,-151.0,0.0001598,2]
[406366981,1771810240401,-151.0,0.0001598,2]
[406366982,1771810240411,-151.0,0.0001598,2]
[406366983,1771810240420,-151.0,0.0001598,2]
[406366984,1771810240429,-151.0,0.0001598,2]
[406366985,1771810240439,-151.0,0.0001598,2]
[406366986,1771810240448,-151.0,0.0001598,2]
[406366987,1771810240459,-151.0,0.0001598,2]
[406366988,1771810240469,-151.0,0.0001598,2]
[406366989,1771810240478,-500.0,0.00015989,2]
[406366990,1771810240488,-500.0,0.00015989,2]
[406366991,1771810240498,-500.0,0.00015989,2]
[406366992,1771810240507,-500.0,0.00015989,2]
[406366993,1771810240516,-305.01737181,0.00015989,2]
[406366994,1771810240526,-500.0,0.00015989,2]
[406366995,1771810240536,-500.0,0.00015989,2]
[406366996,1771810240545,-500.0,0.00015989,2]
[406366997,1771810240555,-500.0,0.00015989,2]
[406366998,1771810240565,-500.0,0.00015989,2]
[406366999,1771810240574,-225.18,0.00015989,2]
[406367000,1771810240584,-1165.69684992,0.00015993,2]
[406367001,1771810240594,-163.76780696,0.0001608,2]
[406367002,1771810240603,-500.0,0.00016089,2]
[406367003,1771810240613,-500.0,0.00016089,2]
[406367004,1771810240623,-500.0,0.00016089,2]
[406367005,1771810240634,-500.0,0.00016089,2]
[406367006,1771810240644,-500.0,0.00016089,2]
[406367007,1771810240654,-500.0,0.00016089,2]
[406367008,1771810240664,-500.0,0.00016089,2]
[406367009,1771810240674,-500.0,0.00016089,2]
[406367010,1771810240683,-500.0,0.00016089,2]
[406367012,1771810240693,-500.0,0.00016089,2]
[406367014,1771810240704,-500.0,0.00016089,2]
[406367015,1771810240717,-351.64176428,0.00016089,2]
[406367017,1771810240727,-500.0,0.00016089,2]
[406367018,1771810240737,-500.0,0.00016089,2]
[406367019,1771810240746,-530.92405592,0.00016089,2]
[406367020,1771810240756,-1000.0,0.0001609,2]
[406367021,1771810240766,-591641.1298,0.0001609,2]
[406367022,1771810240776,-4084.2084,0.0001609,2]
[406367023,1771810240786,-6640.0108,0.0001609,2]
[406367024,1771810240796,-939.53045993,0.0001609,2]
[406367025,1771810240805,-150.0,0.000161,2]
[406367026,1771810240815,-150.0,0.00016122,30]
[406367027,1771810240824,-194.28280832,0.00016137,2]
[406367029,1771810240833,-38984.64900333,0.00016153,2]
[406367030,1771810240843,-5925.06448373,0.00016172,2]
[406367031,1771810240852,-500.0,0.00016189,2]
[406367032,1771810240862,-500.0,0.00016189,2]
[406367033,1771810240871,-500.0,0.00016189,2]
[406367034,1771810240880,-500.0,0.00016189,2]
[406367035,1771810240889,-500.0,0.00016189,2]
[406367036,1771810240899,-500.0,0.00016189,2]
[406367037,1771810240908,-500.0,0.00016189,2]
[406367038,1771810240917,-525.13346204,0.00016189,2]
[406367039,1771810240927,-500.0,0.00016189,2]
[406367040,1771810240936,-500.0,0.00016189,2]
[406367041,1771810240946,-500.0,0.00016189,2]
[406367042,1771810240955,-500.0,0.00016189,2]
[406367043,1771810240966,-500.0,0.00016189,2]
[406367044,1771810240976,-500.0,0.00016189,2]
[406367045,1771810240985,-500.0,0.00016189,2]
[406367046,1771810240995,-500.0,0.00016189,2]
[406367047,1771810241004,-500.0,0.00016189,2]
[406367048,1771810241014,-500.0,0.00016189,2]
[406367049,1771810241023,-500.0,0.00016189,2]
[406367050,1771810241032,-194.28280832,0.00016297,2]
[406367051,1771810241042,-500.0,0.00016399,2]
[406367052,1771810241051,-500.0,0.00016399,2]
[406367053,1771810241060,-500.0,0.00016399,2]
[406367054,1771810241070,-164.26,0.00016438,30]
[406367055,1771810241080,-5925.06448373,0.00016456,2]
[406367056,1771810241089,-194.28280832,0.00016457,2]
[406367057,1771810241099,-150.0,0.00016722,2]
[406367058,1771810241108,-5925.06448373,0.0001674,2]
[406367059,1771810241117,-232.43846494,0.00016817,2]
[406367060,1771810241127,-508.67,0.00016922,2]
[406367061,1771810241136,-9999.99,0.00016922,2]
[406367062,1771810241146,-9999.99,0.00016922,2]
[406367063,1771810241156,-3485.81,0.00016922,2]
[406367064,1771810241171,-999.99,0.00016922,2]
[406367065,1771810241183,-150.99,0.00016922,2]
[406367066,1771810241193,-300.0,0.00017,2]
[406367067,1771810241203,-5925.06448373,0.00017023,2]
[406367068,1771810241214,-420.0,0.00017062,2]
[406367069,1771810241228,-420.0,0.00017062,2]
[406367070,1771810241237,-250.0,0.0001713,2]
[406367071,1771810241247,-1680.0,0.00017148,2]
[406367072,1771810241256,-581.75029072,0.00017159,2]
[406367073,1771810241267,-276.21053802,0.00017159,2]
[406367074,1771810241276,-300.0,0.00017159,2]
[406367075,1771810241285,-195.0,0.00017164,2]
[406367076,1771810241295,-2411.64893281,0.00017164,2]
[406367077,1771810241305,-600.0,0.00017164,2]
[406367078,1771810241314,-195.0,0.00017164,2]
[406367079,1771810241323,-250.0,0.00017164,2]
[406367080,1771810241333,-250.0,0.00017182,2]
[406367081,1771810241342,-195.0,0.0001727,2]
[406367082,1771810241351,-300.0,0.0001727,2]
[406367083,1771810241361,-150.0,0.00017279,2]
[406367084,1771810241371,-5925.06448373,0.00017307,2]
[406367085,1771810241380,-5925.06448373,0.00017591,2]
[406367086,1771810241389,-2871.68,0.00017713,2]
[406367087,1771810241399,-690.43425819,0.00017808,2]
[406367088,1771810241408,-690.43425819,0.00017808,2]
[406367089,1771810241418,-690.43425819,0.00017808,2]
[406367090,1771810241427,-690.43425819,0.00017808,2]
[406367091,1771810241436,-690.43425819,0.00017808,2]
[406367092,1771810241445,-690.43425819,0.00017808,2]
[406367093,1771810241454,-690.43425819,0.00017808,2]
[406367094,1771810241469,-690.43425819,0.00017808,2]
[406367095,1771810241479,-690.43425819,0.00017808,2]
[406367096,1771810241488,-690.43425819,0.00017808,2]
[406367097,1771810241497,-690.43425819,0.00017808,2]
[406367098,1771810241507,-690.43425819,0.00017808,2]
[406367099,1771810241516,-690.43425819,0.00017808,2]
[406367100,1771810241525,-690.43425819,0.00017808,2]
[406367101,1771810241535,-690.43425819,0.00017808,2]
[406367102,1771810241544,-690.43425819,0.00017808,2]
[406367103,1771810241553,-690.43425819,0.00017808,2]
[406367104,1771810241563,-690.43425819,0.00017808,2]
[406367105,1771810241572,-690.43425819,0.00017808,2]
[406367106,1771810241744,-793.99939692,0.00017808,2]
[406367107,1771810241754,-793.99939692,0.00017808,2]
[406367108,1771810241764,-793.99939692,0.00017808,2]
[406367109,1771810241773,-793.99939692,0.00017808,2]
[406367110,1771810241783,-793.99939692,0.00017808,2]
[406367111,1771810241793,-793.99939692,0.00017808,2]
[406367112,1771810241803,-5925.06448373,0.00017875,2]
[406367113,1771810241812,-333.26709868,0.000179,2]
[406367114,1771810241822,-163.76780696,0.0001799,2]
[406367115,1771810241831,-3912755.76959515,0.00018,2]
[406367116,1771810241848,-1628.51354727,0.00018,2]
[406367117,1771810241862,-39642.92974287,0.00018,2]
[406367118,1771810241877,-375.55099882,0.00018,2]
[406367208,1771810245700,-1728.08526797,0.00018,2]
[406367209,1771810245717,-1894.1754418,0.00018,2]
[406367210,1771810245824,-2382.6892475,0.00018,2]
[406367211,1771810245835,-2600.0,0.00018,2]
[406367212,1771810245846,-432.08552563,0.00018,2]
[406367213,1771810245857,-256.79539996,0.00018,2]
[406367214,1771810245869,-1529.49604304,0.00018,2]
[406367215,1771810245933,-37364.91857044,0.00018,2]
[406367216,1771810245944,-2604.49138656,0.00018,2]
[406367217,1771810245959,-53467.35238099,0.00018,2]
[406367218,1771810246072,-9816.49988,0.00018,2]
[406367219,1771810246085,-6458.65527947,0.00018,2]
[406367220,1771810246199,-3265.0,0.00018,2]
[406367221,1771810246328,-784.73279402,0.00018,2]
[406367228,1771810337492,-250.0,0.00015602,2]
[406367229,1771810337519,-195.0,0.00015602,2]
[406367230,1771810337553,-2690.283049,0.00015606,2]
[406367231,1771810337603,-33729.433902,0.00015606,2]
[406367233,1771810536575,611.28902323,0.00015498,2]
[406367234,1771810539968,193.95479546,0.00015498,2]
[406367235,1771810576038,387.87590882,0.00015498,2]
[406367236,1771810607119,333.26709868,0.00015498,2]
[406367237,1771810610617,178.19,0.000109,2]
[406367238,1771810618227,-151.0,0.00015503,2]
[406367239,1771810618248,-151.0,0.00015503,2]
[406367240,1771810618270,-151.0,0.00015503,2]
[406367241,1771810618291,-154.0,0.00015505,2]
[406367242,1771810618313,-4393.0,0.00015506,2]
[406367243,1771810620556,-5000.0,0.00015506,2]
[406367244,1771810621042,-5000.0,0.00015506,2]
[406367245,1771810621523,-300.0,0.00015505,2]
[406367246,1771810621548,-4700.0,0.00015506,2]
[406367247,1771810622187,-5000.0,0.00015506,2]
[406367248,1771810622523,-5000.0,0.00015506,2]
[406367249,1771810623060,-5000.0,0.00015506,2]
[406367250,1771810623583,-5000.0,0.00015506,2]
[406367251,1771810624147,-5000.0,0.00015506,2]
[406367252,1771810624682,-5000.0,0.00015506,2]
[406367253,1771810625222,-5000.0,0.00015506,2]
[406367254,1771810625735,-5000.0,0.00015506,2]
[406367255,1771810627275,-5000.0,0.00015506,2]
[406367256,1771810628053,-5000.0,0.00015506,2]
[406367257,1771810629865,-5000.0,0.00015506,2]
[406367258,1771810630404,-5000.0,0.00015506,2]
[406367259,1771810630916,-5000.0,0.00015506,2]
[406367260,1771810632743,-5000.0,0.00015506,2]
[406367261,1771810633300,-5000.0,0.00015506,2]
[406367262,1771810635266,-5000.0,0.00015506,2]
[406367265,1771810678102,-5000.0,0.00015506,2]
[406367266,1771810681479,-5000.0,0.00015506,2]
[406367267,1771810682640,-5000.0,0.00015506,2]
[406367268,1771810684011,-791.3109578,0.00015506,2]
[406367269,1771810684035,-4208.6890422,0.00015506,2]
[406367270,1771810696448,-5000.0,0.00015506,2]
[406367271,1771810709679,10241.31776679,0.00015429,2]
[406367272,1771810712141,434.27455551,0.00015392,2]
[406367273,1771810722859,575.0,0.0001521,2]
[406367274,1771810727288,222.17806578,0.00015429,2]
[406367275,1771810752157,-368.95083716,0.00015505,2]
[406367276,1771810752179,-4631.04916284,0.00015506,2]
[406367277,1771810753267,-590.17280716,0.00015506,2]
[406367278,1771810753288,-4409.82719284,0.00015506,2]
[406367279,1771810754214,-5000.0,0.00015506,2]
[406367280,1771810785572,-500.0,0.00015505,2]
[406367281,1771810785595,-500.0,0.00015505,2]
[406367282,1771810785618,-500.0,0.00015505,2]
[406367283,1771810785642,-500.0,0.00015505,2]
[406367284,1771810785664,-500.0,0.00015505,2]
[406367285,1771810785686,-500.0,0.00015505,2]
[406367286,1771810785708,-150.0,0.00015505,2]
[406367287,1771810785728,-500.0,0.00015505,2]
[406367288,1771810785750,-1350.0,0.00015506,2]
[406367289,1771810800875,4190.7397263,0.00015418,2]
[406367290,1771810803403,279.92,0.00015496,2]
[406367291,1771810803599,279.92,0.00015496,2]
[406367292,1771810803793,279.92,0.00015496,2]
[406367293,1771810804086,279.92,0.00015496,2]
[406367294,1771810804195,279.92,0.00015496,2]
[406367295,1771810805827,3091.54,0.00015496,2]
[406367296,1771810806117,3091.54,0.00015496,2]
[406367297,1771810810955,163.76780696,0.00015496,2]
[406367298,1771810836970,22507.6551948,0.00015406,2]
[406367299,1771810939242,1478.19,0.00012561,2]
[406367302,1771811054518,250.0,0.00015,2]
[406367304,1771811100743,-195.17515659,0.00015098,2]
[406367305,1771811100765,-250.0,0.00015098,2]
[406367306,1771811100788,-1205.498,0.00015098,2]
[406367307,1771811100810,-575.98193,0.0001521,2]
[406367308,1771811100832,-276.21053802,0.00015282,2]
[406367309,1771811100853,-509.40751935,0.00015397,2]
[406367310,1771811100876,-9217.18599012,0.00015397,2]
[406367311,1771811100898,-629.95879543,0.00015405,2]
[406367312,1771811100921,-199.70814864,0.00015405,2]
[406367313,1771811100942,-258.26558601,0.00015405,2]
[406367314,1771811100966,-500.0,0.00015405,2]
[406367315,1771811100989,-500.0,0.00015405,2]
[406367316,1771811101012,-500.0,0.00015405,2]
[406367317,1771811101035,-500.0,0.00015405,2]
[406367318,1771811101058,-500.0,0.00015405,2]
[406367319,1771811101081,-500.0,0.00015405,2]
[406367320,1771811101104,-500.0,0.00015405,2]
[406367321,1771811101128,-500.0,0.00015405,2]
[406367322,1771811101153,-500.0,0.00015405,2]
[406367323,1771811101178,-393.380182,0.00015405,2]
[406367324,1771811101207,-500.0,0.00015405,2]
[406367325,1771811101231,-500.0,0.00015405,2]
[406367326,1771811101255,-500.0,0.00015405,2]
[406367327,1771811101278,-500.0,0.00015405,2]
[406367328,1771811101303,-500.0,0.00015405,2]
[406367329,1771811101327,-500.0,0.00015405,2]
[406367330,1771811101352,-500.0,0.00015405,2]
[406367331,1771811101379,-500.0,0.00015405,2]
[406367332,1771811101404,-500.0,0.00015405,2]
[406367333,1771811101428,-500.0,0.00015405,2]
[406367334,1771811101452,-500.0,0.00015405,2]
[406367335,1771811101476,-500.0,0.00015405,2]
[406367336,1771811101504,-500.0,0.00015405,2]
[406367337,1771811101528,-500.0,0.00015405,2]
[406367338,1771811101553,-500.0,0.00015405,2]
[406367339,1771811101578,-500.0,0.00015405,2]
[406367340,1771811101601,-500.0,0.00015405,2]
[406367341,1771811101627,-500.0,0.00015405,2]
[406367342,1771811101651,-712789.22815384,0.00015406,2]
[406367351,1771811253682,1003.45,0.0001821,120]